[Event "Titled Tuesday Blitz January 17 Late 2023"]
[White "Rosen, Eric"]
[Black "Kovacs, Klara"]
[WhiteFideId "2032562"]
[BlackFideId "733210"]
[WhiteElo "2349"]
[BlackElo "2121"]
[Result "1-0"]
[Round "01"]
[TimeControl "180+2"]
[Date "2023.01.17"]
[WhiteClock "0:00:21"]
[BlackClock "0:00:12"]

1. d4 {[%clk 0:02:59]}  e6 {[%clk 0:02:57]} 2. Bf4 {[%clk 0:02:58]}  Nf6 {[%clk 0:02:55]} 3. e3 {[%clk 0:02:58]}  c5 {[%clk 0:02:55]} 4. Nf3 {[%clk 0:02:58]}  b6 {[%clk 0:02:55]} 5. Nc3 {[%clk 0:02:55]}  cxd4 {[%clk 0:02:50]} 6. Nb5 {[%clk 0:02:47]}  d6 {[%clk 0:02:37]} 7. Qxd4 {[%clk 0:02:46]}  Nd5 {[%clk 0:02:22]} 8. Qc4 {[%clk 0:02:21]}  a6 {[%clk 0:02:16]} 9. Nc3 {[%clk 0:02:11]}  b5 {[%clk 0:02:10]} 10. Qd3 {[%clk 0:01:56]}  Nxf4 {[%clk 0:02:06]} 11. exf4 {[%clk 0:01:57]}  Be7 {[%clk 0:01:58]} 12. g3 {[%clk 0:01:55]}  Bb7 {[%clk 0:01:57]} 13. Bg2 {[%clk 0:01:56]}  O-O {[%clk 0:01:57]} 14. O-O {[%clk 0:01:55]}  Nc6 {[%clk 0:01:57]} 15. Rad1 {[%clk 0:01:51]}  Rc8 {[%clk 0:01:56]} 16. Rfe1 {[%clk 0:01:51]}  Qb6 {[%clk 0:01:54]} 17. f5 {[%clk 0:01:46]}  Nb4 {[%clk 0:01:49]} 18. Qe2 {[%clk 0:01:44]}  e5 {[%clk 0:01:48]} 19. a3 {[%clk 0:01:41]}  Nc6 {[%clk 0:01:44]} 20. Nd5 {[%clk 0:01:36]}  Qd8 {[%clk 0:01:45]} 21. c3 {[%clk 0:01:31]}  Na5 {[%clk 0:01:39]} 22. Nd2 {[%clk 0:01:29]}  f6 {[%clk 0:01:22]} 23. Qe4 {[%clk 0:01:13]}  Kh8 {[%clk 0:01:20]} 24. Qh4 {[%clk 0:01:10]}  Nc4 {[%clk 0:01:17]} 25. Nxc4 {[%clk 0:00:51]}  Rxc4 {[%clk 0:01:18]} 26. Re4 {[%clk 0:00:52]}  Rc5 {[%clk 0:01:06]} 27. Rg4 {[%clk 0:00:48]}  Re8 {[%clk 0:00:43]} 28. Qh5 {[%clk 0:00:43]}  Bf8 {[%clk 0:00:33]} 29. Nxf6 {[%clk 0:00:32]}  gxf6 {[%clk 0:00:22]} 30. Bxb7 {[%clk 0:00:28]}  Qe7 {[%clk 0:00:18]} 31. Bd5 {[%clk 0:00:25]}  Bg7 {[%clk 0:00:16]} 32. Be6 {[%clk 0:00:20]}  Rd8 {[%clk 0:00:14]} 33. Rh4 {[%clk 0:00:20]}  h6 {[%clk 0:00:14]} 34. Qg6 {[%clk 0:00:20]}  d5 {[%clk 0:00:14]} 35. Rxh6+ {[%clk 0:00:20]}  Bxh6 {[%clk 0:00:12]} 36. Qxh6+ {[%clk 0:00:21]}  Qh7 {[%clk 0:00:11]} 37. Qxf6+ {[%clk 0:00:21]}  Qg7 {[%clk 0:00:12]} 38. Qxd8+ {[%clk 0:00:22]}  Kh7 {[%clk 0:00:12]} 39. Qh4+ {[%clk 0:00:22]}  Qh6 {[%clk 0:00:12]} 40. Qxh6+ {[%clk 0:00:21]}  Kxh6 {[%clk 0:00:12]} 41. Rxd5 {[%clk 0:00:21]} 1-0


[Site "https://www.chess.com"]

[Event "Titled Tuesday Blitz January 17 Late 2023"]
[White "Romero Ruscalleda, Josep"]
[Black "Carnicelli, Valerio"]
[WhiteFideId "2231859"]
[BlackFideId "856185"]
[WhiteElo "2160"]
[BlackElo "2370"]
[Result "0-1"]
[Round "01"]
[TimeControl "180+2"]
[Date "2023.01.17"]
[WhiteClock "0:00:06"]
[BlackClock "0:00:12"]

1. e4 {[%clk 0:03:00]}  c5 {[%clk 0:02:59]} 2. c3 {[%clk 0:03:00]}  d5 {[%clk 0:02:58]} 3. exd5 {[%clk 0:03:00]}  Qxd5 {[%clk 0:02:59]} 4. d4 {[%clk 0:03:00]}  cxd4 {[%clk 0:02:59]} 5. Be3 {[%clk 0:02:59]}  Nc6 {[%clk 0:02:57]} 6. cxd4 {[%clk 0:02:59]}  e6 {[%clk 0:02:50]} 7. Nc3 {[%clk 0:02:58]}  Bb4 {[%clk 0:02:50]} 8. Nf3 {[%clk 0:02:57]}  Nf6 {[%clk 0:02:48]} 9. Bd3 {[%clk 0:02:57]}  O-O {[%clk 0:02:48]} 10. O-O {[%clk 0:02:56]}  Bxc3 {[%clk 0:02:47]} 11. bxc3 {[%clk 0:02:57]}  b6 {[%clk 0:02:45]} 12. Qe2 {[%clk 0:02:53]}  Bb7 {[%clk 0:02:45]} 13. Rfd1 {[%clk 0:02:49]}  Rac8 {[%clk 0:02:43]} 14. Rac1 {[%clk 0:02:42]}  Rfd8 {[%clk 0:02:43]} 15. Bg5 {[%clk 0:02:23]}  Ne7 {[%clk 0:02:32]} 16. c4 {[%clk 0:02:12]}  Qa5 {[%clk 0:02:31]} 17. Ne5 {[%clk 0:01:53]}  Ng6 {[%clk 0:02:24]} 18. Nxg6 {[%clk 0:01:29]}  hxg6 {[%clk 0:02:25]} 19. Be3 {[%clk 0:01:20]}  Qh5 {[%clk 0:02:20]} 20. Qxh5 {[%clk 0:01:18]}  Nxh5 {[%clk 0:02:16]} 21. a4 {[%clk 0:01:01]}  Nf6 {[%clk 0:02:14]} 22. a5 {[%clk 0:01:01]}  bxa5 {[%clk 0:02:08]} 23. Ra1 {[%clk 0:01:01]}  Be4 {[%clk 0:02:07]} 24. Be2 {[%clk 0:00:51]}  a4 {[%clk 0:02:07]} 25. Rdc1 {[%clk 0:00:48]}  Bc6 {[%clk 0:01:56]} 26. Bd1 {[%clk 0:00:48]}  Rd7 {[%clk 0:01:44]} 27. Bxa4 {[%clk 0:00:46]}  Bxa4 {[%clk 0:01:45]} 28. Rxa4 {[%clk 0:00:46]}  Rdc7 {[%clk 0:01:38]} 29. c5 {[%clk 0:00:45]}  Nd5 {[%clk 0:01:37]} 30. Rca1 {[%clk 0:00:43]}  Rb8 {[%clk 0:01:29]} 31. h3 {[%clk 0:00:33]}  Rbb7 {[%clk 0:01:28]} 32. Ra6 {[%clk 0:00:28]}  Kf8 {[%clk 0:01:16]} 33. Kh2 {[%clk 0:00:20]}  Ke7 {[%clk 0:01:12]} 34. Kg3 {[%clk 0:00:21]}  Kf6 {[%clk 0:01:10]} 35. Kf3 {[%clk 0:00:21]}  g5 {[%clk 0:00:57]} 36. R1a3 {[%clk 0:00:19]}  Kg6 {[%clk 0:00:54]} 37. g3 {[%clk 0:00:11]}  Nb4 {[%clk 0:00:40]} 38. Rd6 {[%clk 0:00:05]}  Rd7 {[%clk 0:00:32]} 39. Rxd7 {[%clk 0:00:04]}  Rxd7 {[%clk 0:00:33]} 40. Ra4 {[%clk 0:00:03]}  Nd5 {[%clk 0:00:28]} 41. Ra6 {[%clk 0:00:01]}  Kf6 {[%clk 0:00:20]} 42. Ke4 {[%clk 0:00:02]}  Rb7 {[%clk 0:00:17]} 43. Rd6 {[%clk 0:00:01]}  a5 {[%clk 0:00:13]} 44. c6 {[%clk 0:00:01]}  Rc7 {[%clk 0:00:12]} 45. Rxd5 {[%clk 0:00:02]}  exd5+ {[%clk 0:00:12]} 46. Kxd5 {[%clk 0:00:02]}  a4 {[%clk 0:00:12]} 47. Kc5 {[%clk 0:00:03]}  a3 {[%clk 0:00:12]} 48. Bc1 {[%clk 0:00:03]}  a2 {[%clk 0:00:11]} 49. Bb2 {[%clk 0:00:04]}  Ke7 {[%clk 0:00:10]} 50. d5 {[%clk 0:00:04]}  Ra7 {[%clk 0:00:10]} 51. d6+ {[%clk 0:00:04]}  Kd8 {[%clk 0:00:10]} 52. Ba1 {[%clk 0:00:04]}  Ra3 {[%clk 0:00:10]} 53. Kb4 {[%clk 0:00:03]}  Rd3 {[%clk 0:00:10]} 54. Kc5 {[%clk 0:00:02]}  Rd1 {[%clk 0:00:10]} 55. Bxg7 {[%clk 0:00:02]}  a1=Q {[%clk 0:00:08]} 56. Bxa1 {[%clk 0:00:02]}  Rxa1 {[%clk 0:00:09]} 57. Kd5 {[%clk 0:00:03]}  Rd1+ {[%clk 0:00:09]} 58. Ke5 {[%clk 0:00:03]}  Rc1 {[%clk 0:00:08]} 59. Kd5 {[%clk 0:00:03]}  Rc2 {[%clk 0:00:09]} 60. f4 {[%clk 0:00:03]}  gxf4 {[%clk 0:00:09]} 61. gxf4 {[%clk 0:00:03]}  f5 {[%clk 0:00:09]} 62. Ke5 {[%clk 0:00:03]}  Rxc6 {[%clk 0:00:09]} 63. h4 {[%clk 0:00:04]}  Kd7 {[%clk 0:00:09]} 64. h5 {[%clk 0:00:04]}  Rxd6 {[%clk 0:00:09]} 65. Kxf5 {[%clk 0:00:04]}  Ke7 {[%clk 0:00:10]} 66. Kg5 {[%clk 0:00:04]}  Kf7 {[%clk 0:00:10]} 67. h6 {[%clk 0:00:05]}  Rg6+ {[%clk 0:00:10]} 68. Kh5 {[%clk 0:00:05]}  Rg1 {[%clk 0:00:10]} 69. f5 {[%clk 0:00:05]}  Kf6 {[%clk 0:00:10]} 70. h7 {[%clk 0:00:05]}  Rh1+ {[%clk 0:00:11]} 71. Kg4 {[%clk 0:00:05]}  Rxh7 {[%clk 0:00:11]} 72. Kf4 {[%clk 0:00:06]}  Rh5 {[%clk 0:00:11]} 73. Ke4 {[%clk 0:00:06]}  Rxf5 {[%clk 0:00:12]} 0-1


[Site "https://www.chess.com"]

[Event "Titled Tuesday Blitz January 17 Late 2023"]
[White "Korchmar, Vasiliy"]
[Black "Grot, Blazej"]
[WhiteFideId "24131750"]
[BlackFideId "21835845"]
[WhiteElo "2438"]
[BlackElo "1990"]
[Result "1-0"]
[Round "01"]
[TimeControl "180+2"]
[Date "2023.01.17"]
[WhiteClock "0:01:32"]
[BlackClock "0:00:02"]

1. e4 {[%clk 0:03:00]}  d6 {[%clk 0:02:53]} 2. d4 {[%clk 0:02:58]}  Nf6 {[%clk 0:02:53]} 3. Bd3 {[%clk 0:02:56]}  Nbd7 {[%clk 0:02:51]} 4. Nf3 {[%clk 0:02:55]}  e5 {[%clk 0:02:51]} 5. c3 {[%clk 0:02:54]}  Be7 {[%clk 0:02:50]} 6. O-O {[%clk 0:02:54]}  c6 {[%clk 0:02:50]} 7. h3 {[%clk 0:02:50]}  O-O {[%clk 0:02:50]} 8. Re1 {[%clk 0:02:50]}  b6 {[%clk 0:02:50]} 9. Nbd2 {[%clk 0:02:49]}  Bb7 {[%clk 0:02:50]} 10. Nf1 {[%clk 0:02:50]}  a6 {[%clk 0:02:50]} 11. Ng3 {[%clk 0:02:49]}  Re8 {[%clk 0:02:50]} 12. Nf5 {[%clk 0:02:48]}  Bf8 {[%clk 0:02:50]} 13. Bg5 {[%clk 0:02:46]}  Qc7 {[%clk 0:02:49]} 14. Nh2 {[%clk 0:02:44]}  b5 {[%clk 0:02:49]} 15. Qf3 {[%clk 0:02:43]}  d5 {[%clk 0:02:35]} 16. Nh6+ {[%clk 0:02:38]}  gxh6 {[%clk 0:02:29]} 17. Bxf6 {[%clk 0:02:35]}  Nxf6 {[%clk 0:02:29]} 18. Qxf6 {[%clk 0:02:36]}  Bg7 {[%clk 0:02:29]} 19. Qf5 {[%clk 0:02:33]}  Bc8 {[%clk 0:02:16]} 20. Qh5 {[%clk 0:02:33]}  exd4 {[%clk 0:02:08]} 21. exd5 {[%clk 0:02:32]}  Re5 {[%clk 0:01:25]} 22. Rxe5 {[%clk 0:02:18]}  Qxe5 {[%clk 0:01:26]} 23. Qxe5 {[%clk 0:02:16]}  Bxe5 {[%clk 0:01:27]} 24. Nf3 {[%clk 0:02:16]}  Bf6 {[%clk 0:01:16]} 25. Nxd4 {[%clk 0:02:08]}  cxd5 {[%clk 0:01:01]} 26. a3 {[%clk 0:02:09]}  Bd7 {[%clk 0:00:48]} 27. f3 {[%clk 0:02:09]}  Rb8 {[%clk 0:00:34]} 28. Nb3 {[%clk 0:01:51]}  Rc8 {[%clk 0:00:18]} 29. Kf2 {[%clk 0:01:45]}  Be6 {[%clk 0:00:18]} 30. Rd1 {[%clk 0:01:38]}  Kf8 {[%clk 0:00:16]} 31. Bxh7 {[%clk 0:01:37]}  Ke7 {[%clk 0:00:16]} 32. Bb1 {[%clk 0:01:37]}  Ra8 {[%clk 0:00:08]} 33. Nd4 {[%clk 0:01:36]}  Bd7 {[%clk 0:00:07]} 34. Ba2 {[%clk 0:01:35]}  Kd6 {[%clk 0:00:05]} 35. Nc2 {[%clk 0:01:34]}  a5 {[%clk 0:00:05]} 36. Bxd5 {[%clk 0:01:32]}  Rf8 {[%clk 0:00:03]} 37. Bxf7+ {[%clk 0:01:30]}  Kc7 {[%clk 0:00:03]} 38. Bd5 {[%clk 0:01:31]}  b4 {[%clk 0:00:02]} 39. axb4 {[%clk 0:01:31]}  axb4 {[%clk 0:00:03]} 40. Nxb4 {[%clk 0:01:32]}  Rb8 {[%clk 0:00:02]} 41. Be4 {[%clk 0:01:31]}  Rb6 {[%clk 0:00:02]} 42. Nd5+ {[%clk 0:01:32]} 1-0


[Site "https://www.chess.com"]

[Event "Titled Tuesday Blitz January 17 Late 2023"]
[White "Mione, Dario"]
[Black "Chor, Kevin"]
[WhiteFideId "806625"]
[BlackFideId "2090740"]
[WhiteElo "2228"]
[BlackElo "1944"]
[Result "0-1"]
[Round "01"]
[TimeControl "180+2"]
[Date "2023.01.17"]
[WhiteClock "0:00:24"]
[BlackClock "0:00:34"]

1. e4 {[%clk 0:02:58]}  c5 {[%clk 0:02:59]} 2. d4 {[%clk 0:02:57]}  cxd4 {[%clk 0:02:59]} 3. c3 {[%clk 0:02:57]}  g6 {[%clk 0:02:59]} 4. cxd4 {[%clk 0:02:57]}  d5 {[%clk 0:02:57]} 5. e5 {[%clk 0:02:56]}  Bg7 {[%clk 0:02:57]} 6. Nc3 {[%clk 0:02:56]}  Nc6 {[%clk 0:02:56]} 7. Be3 {[%clk 0:02:54]}  Nh6 {[%clk 0:02:55]} 8. Bd3 {[%clk 0:02:52]}  Ng4 {[%clk 0:02:46]} 9. Nf3 {[%clk 0:02:35]}  Nxe3 {[%clk 0:02:44]} 10. fxe3 {[%clk 0:02:36]}  O-O {[%clk 0:02:42]} 11. Qb3 {[%clk 0:02:34]}  e6 {[%clk 0:02:19]} 12. O-O-O {[%clk 0:02:32]}  Qb6 {[%clk 0:02:00]} 13. Qxb6 {[%clk 0:02:23]}  axb6 {[%clk 0:02:01]} 14. Kb1 {[%clk 0:02:23]}  f6 {[%clk 0:01:59]} 15. exf6 {[%clk 0:02:21]}  Bxf6 {[%clk 0:01:59]} 16. b3 {[%clk 0:02:15]}  Bd7 {[%clk 0:01:57]} 17. Na4 {[%clk 0:02:13]}  Bd8 {[%clk 0:01:51]} 18. Bb5 {[%clk 0:02:08]}  Ra5 {[%clk 0:01:45]} 19. Nc3 {[%clk 0:02:03]}  Be7 {[%clk 0:01:39]} 20. a4 {[%clk 0:02:01]}  Bd6 {[%clk 0:01:32]} 21. e4 {[%clk 0:01:55]}  Bb4 {[%clk 0:01:29]} 22. Na2 {[%clk 0:01:42]}  dxe4 {[%clk 0:01:22]} 23. Ng5 {[%clk 0:01:40]}  e3 {[%clk 0:01:15]} 24. Nxb4 {[%clk 0:01:35]}  Nxb4 {[%clk 0:01:08]} 25. Bxd7 {[%clk 0:01:34]}  Rxg5 {[%clk 0:01:08]} 26. Bxe6+ {[%clk 0:01:33]}  Kg7 {[%clk 0:01:08]} 27. g3 {[%clk 0:01:08]}  Re8 {[%clk 0:00:57]} 28. d5 {[%clk 0:01:05]}  e2 {[%clk 0:00:56]} 29. Rd4 {[%clk 0:00:43]}  Nxd5 {[%clk 0:00:51]} 30. Rxd5 {[%clk 0:00:35]}  Rxd5 {[%clk 0:00:50]} 31. Bxd5 {[%clk 0:00:34]}  e1=R+ {[%clk 0:00:49]} 32. Rxe1 {[%clk 0:00:34]}  Rxe1+ {[%clk 0:00:50]} 33. Kc2 {[%clk 0:00:35]}  Re2+ {[%clk 0:00:50]} 34. Kc3 {[%clk 0:00:34]}  Rxh2 {[%clk 0:00:51]} 35. Bxb7 {[%clk 0:00:31]}  Rh3 {[%clk 0:00:51]} 36. Kb4 {[%clk 0:00:31]}  Rxg3 {[%clk 0:00:51]} 37. Bd5 {[%clk 0:00:31]}  Rg5 {[%clk 0:00:37]} 38. Kc4 {[%clk 0:00:24]}  h5 {[%clk 0:00:36]} 39. b4 {[%clk 0:00:24]}  h4 {[%clk 0:00:36]} 40. a5 {[%clk 0:00:24]}  bxa5 {[%clk 0:00:35]} 41. bxa5 {[%clk 0:00:24]}  Rxd5 {[%clk 0:00:33]} 42. Kxd5 {[%clk 0:00:24]}  h3 {[%clk 0:00:33]} 43. a6 {[%clk 0:00:24]}  h2 {[%clk 0:00:34]} 0-1


[Site "https://www.chess.com"]

[Event "Titled Tuesday Blitz January 17 Late 2023"]
[White "Liu, Kelsey"]
[Black "Czernek, Tymon"]
[WhiteFideId "30944481"]
[BlackFideId "1199510"]
[WhiteElo "2065"]
[BlackElo "2314"]
[Result "0-1"]
[Round "01"]
[TimeControl "180+2"]
[Date "2023.01.17"]
[WhiteClock "0:00:03"]
[BlackClock "0:00:25"]

1. e4 {[%clk 0:02:58]}  c5 {[%clk 0:02:57]} 2. Nf3 {[%clk 0:02:58]}  d6 {[%clk 0:02:58]} 3. Nc3 {[%clk 0:02:57]}  Nf6 {[%clk 0:02:58]} 4. e5 {[%clk 0:02:58]}  dxe5 {[%clk 0:02:58]} 5. Nxe5 {[%clk 0:02:58]}  a6 {[%clk 0:02:57]} 6. a4 {[%clk 0:02:57]}  e6 {[%clk 0:02:57]} 7. Nc4 {[%clk 0:02:53]}  Nc6 {[%clk 0:02:45]} 8. a5 {[%clk 0:02:53]}  Be7 {[%clk 0:02:41]} 9. d3 {[%clk 0:02:51]}  O-O {[%clk 0:02:40]} 10. Bf4 {[%clk 0:02:50]}  Nd5 {[%clk 0:02:38]} 11. Bg3 {[%clk 0:02:45]}  Bf6 {[%clk 0:02:37]} 12. Qd2 {[%clk 0:02:43]}  Nxc3 {[%clk 0:02:33]} 13. bxc3 {[%clk 0:02:42]}  e5 {[%clk 0:02:34]} 14. Be2 {[%clk 0:02:40]}  Be6 {[%clk 0:02:29]} 15. Nb6 {[%clk 0:02:37]}  Rb8 {[%clk 0:02:26]} 16. f4 {[%clk 0:02:15]}  Nxa5 {[%clk 0:02:15]} 17. Rb1 {[%clk 0:01:57]}  e4 {[%clk 0:01:53]} 18. f5 {[%clk 0:01:44]}  e3 {[%clk 0:01:35]} 19. Qxe3 {[%clk 0:01:31]}  Bxc3+ {[%clk 0:01:35]} 20. Kf1 {[%clk 0:01:31]}  Ba2 {[%clk 0:01:30]} 21. Rd1 {[%clk 0:01:13]}  Qxb6 {[%clk 0:01:28]} 22. Bxb8 {[%clk 0:01:13]}  Rxb8 {[%clk 0:01:29]} 23. Bf3 {[%clk 0:01:02]}  Bd4 {[%clk 0:01:26]} 24. Qe4 {[%clk 0:00:56]}  Rd8 {[%clk 0:01:21]} 25. g3 {[%clk 0:00:56]}  Qb2 {[%clk 0:01:11]} 26. Qe2 {[%clk 0:00:54]}  Nc6 {[%clk 0:01:05]} 27. Kg2 {[%clk 0:00:52]}  Ne5 {[%clk 0:01:04]} 28. Rhe1 {[%clk 0:00:47]}  h6 {[%clk 0:00:56]} 29. Bh5 {[%clk 0:00:47]}  Bd5+ {[%clk 0:00:55]} 30. Kh3 {[%clk 0:00:47]}  Qb6 {[%clk 0:00:49]} 31. Rb1 {[%clk 0:00:47]}  Qf6 {[%clk 0:00:48]} 32. Rf1 {[%clk 0:00:43]}  b5 {[%clk 0:00:46]} 33. g4 {[%clk 0:00:36]}  b4 {[%clk 0:00:39]} 34. Rf4 {[%clk 0:00:33]}  a5 {[%clk 0:00:36]} 35. Re1 {[%clk 0:00:26]}  a4 {[%clk 0:00:30]} 36. Rxd4 {[%clk 0:00:20]}  cxd4 {[%clk 0:00:31]} 37. Qxe5 {[%clk 0:00:20]}  Qxe5 {[%clk 0:00:32]} 38. Rxe5 {[%clk 0:00:20]}  a3 {[%clk 0:00:33]} 39. Re1 {[%clk 0:00:20]}  Rc8 {[%clk 0:00:31]} 40. g5 {[%clk 0:00:16]}  hxg5 {[%clk 0:00:29]} 41. Rb1 {[%clk 0:00:02]}  a2 {[%clk 0:00:29]} 42. Ra1 {[%clk 0:00:02]}  Rxc2 {[%clk 0:00:29]} 43. Bd1 {[%clk 0:00:03]}  Rb2 {[%clk 0:00:25]} 44. Ba4 {[%clk 0:00:03]}  Rb1 {[%clk 0:00:25]} 0-1


[Site "https://www.chess.com"]

[Event "Titled Tuesday Blitz January 17 Late 2023"]
[White "Pace, Christopher"]
[Black "Omelja, Artem"]
[WhiteFideId "2610167"]
[BlackFideId "14119846"]
[WhiteElo "2053"]
[BlackElo "2446"]
[Result "1-0"]
[Round "01"]
[TimeControl "180+2"]
[Date "2023.01.17"]
[WhiteClock "0:00:11"]
[BlackClock "0:00:05"]

1. d4 {[%clk 0:02:59]}  Nf6 {[%clk 0:02:50]} 2. c4 {[%clk 0:02:59]}  g6 {[%clk 0:02:50]} 3. Nc3 {[%clk 0:02:53]}  Bg7 {[%clk 0:02:45]} 4. e4 {[%clk 0:02:49]}  d6 {[%clk 0:02:38]} 5. Nf3 {[%clk 0:02:48]}  O-O {[%clk 0:02:31]} 6. Be2 {[%clk 0:02:48]}  Nc6 {[%clk 0:02:31]} 7. d5 {[%clk 0:02:42]}  Nb8 {[%clk 0:02:24]} 8. O-O {[%clk 0:02:41]}  e5 {[%clk 0:02:24]} 9. Rb1 {[%clk 0:02:27]}  a5 {[%clk 0:02:23]} 10. a3 {[%clk 0:02:27]}  Nh5 {[%clk 0:02:19]} 11. g3 {[%clk 0:02:25]}  f5 {[%clk 0:02:16]} 12. Ng5 {[%clk 0:02:20]}  Nf6 {[%clk 0:02:13]} 13. exf5 {[%clk 0:02:01]}  Bxf5 {[%clk 0:02:12]} 14. Bd3 {[%clk 0:02:00]}  Bg4 {[%clk 0:02:07]} 15. f3 {[%clk 0:01:59]}  Bd7 {[%clk 0:02:06]} 16. Be3 {[%clk 0:01:47]}  Qe7 {[%clk 0:01:58]} 17. Qd2 {[%clk 0:01:45]}  Na6 {[%clk 0:01:53]} 18. b4 {[%clk 0:01:44]}  axb4 {[%clk 0:01:53]} 19. axb4 {[%clk 0:01:44]}  h6 {[%clk 0:01:38]} 20. Nge4 {[%clk 0:01:44]}  Nxe4 {[%clk 0:01:37]} 21. Bxe4 {[%clk 0:01:39]}  g5 {[%clk 0:01:36]} 22. Qd3 {[%clk 0:01:18]}  Bh3 {[%clk 0:01:27]} 23. Rf2 {[%clk 0:01:17]}  Kh8 {[%clk 0:01:20]} 24. g4 {[%clk 0:01:04]}  Rf4 {[%clk 0:01:13]} 25. Bxf4 {[%clk 0:00:57]}  exf4 {[%clk 0:01:13]} 26. Ra2 {[%clk 0:00:39]}  Re8 {[%clk 0:01:05]} 27. Re2 {[%clk 0:00:21]}  Qf6 {[%clk 0:00:57]} 28. Nd1 {[%clk 0:00:17]}  Nb8 {[%clk 0:00:50]} 29. Nf2 {[%clk 0:00:17]}  Qd4 {[%clk 0:00:43]} 30. Rd1 {[%clk 0:00:16]}  c5 {[%clk 0:00:30]} 31. Qxd4 {[%clk 0:00:15]}  Bxd4 {[%clk 0:00:29]} 32. Rxd4 {[%clk 0:00:15]}  cxd4 {[%clk 0:00:29]} 33. Nxh3 {[%clk 0:00:16]}  Nd7 {[%clk 0:00:29]} 34. Nf2 {[%clk 0:00:15]}  Ne5 {[%clk 0:00:29]} 35. c5 {[%clk 0:00:14]}  Rc8 {[%clk 0:00:25]} 36. cxd6 {[%clk 0:00:12]}  Rd8 {[%clk 0:00:25]} 37. Bf5 {[%clk 0:00:12]}  Nxf3+ {[%clk 0:00:23]} 38. Kh1 {[%clk 0:00:10]}  Rxd6 {[%clk 0:00:22]} 39. Re8+ {[%clk 0:00:09]}  Kg7 {[%clk 0:00:22]} 40. Re7+ {[%clk 0:00:10]}  Kf8 {[%clk 0:00:21]} 41. Rxb7 {[%clk 0:00:10]}  Rxd5 {[%clk 0:00:21]} 42. Be4 {[%clk 0:00:10]}  Re5 {[%clk 0:00:18]} 43. Bxf3 {[%clk 0:00:10]}  d3 {[%clk 0:00:15]} 44. Kg2 {[%clk 0:00:09]}  d2 {[%clk 0:00:15]} 45. Rd7 {[%clk 0:00:09]}  Rb5 {[%clk 0:00:14]} 46. Rxd2 {[%clk 0:00:09]}  Rxb4 {[%clk 0:00:14]} 47. Rd6 {[%clk 0:00:10]}  Kg7 {[%clk 0:00:14]} 48. h4 {[%clk 0:00:10]}  gxh4 {[%clk 0:00:12]} 49. Rd5 {[%clk 0:00:10]}  Kg6 {[%clk 0:00:08]} 50. Rh5 {[%clk 0:00:11]}  Rb5 {[%clk 0:00:05]} 51. Rxb5 {[%clk 0:00:11]} 1-0


[Site "https://www.chess.com"]